Cogmind - Beta 15 @@@ ROGUE MODE // 2025.05.10 @ 11:02:56 Player: f3-rnm Result: Destroyed by Immortal with Experimental Jetlance Performance ------------- Evolutions (8) 4000 Regions Visited (22) 4400 Robots Destroyed (388) 1940 Value Destroyed (26046) 26046 Prototype IDs (148) 2960 Alien Tech Used (11) 2200 Bonus (16947) 16947 TOTAL SCORE: 58493 Bonus ------- High Alert Combat Kills 7606 Follower Combat Kills 1600 Network Hubs Disabled 200 Registered with UFD 300 Met Optimus in HQ 500 Met Zhirov 300 Built Enhanced Grunts 300 A7 Reached Mainframe 300 Met R17 at Cetus 500 Used Core Reset Matrix 3000 Met R17 at Research 2000 Met Sigix 2000 Friendly Fire -1659 Cogmind --------- Core Integrity 0/1450 Matter 168/300 Energy 51/2925 System Corruption 49% Temperature Cool (0) Movement Immobile (Siege) Location -2/Protoforge Parts ------- > --- POWER (3) -------- Reinforced Antimatter Reactor Hybrid Graviton Reactor Hybrid Graviton Reactor > --- PROPULSION (4) --- Experimental Heavy Siege Treads Experimental Heavy Siege Treads > --- UTILITY (11) ----- Advanced Heat Sink Huge Storage Unit Experimental Targeting Computer Core Analyzer Graphene Brace (fused) Experimental EM Shield Improved Remote Force Field A0-MCA's Component Scanner > --- WEAPON (5) ------- Heavy Laser Precision Phase Gun Precision Phase Gun Heavy Machine Gun Railgun > --- INVENTORY (25) --- High-density Centrium Heavy Treads Experimental Heavy Siege Treads Compact Battery (200) Advanced Matter Compressor (400) Precision Matter Filter Graphene Brace Advanced Point Defense System High-powered Tractor Beam Dimensional Node Initializer Gamma Rifle Heavy Hardcell Cannon Hypercooled Linear Accelerator Hypercooled Linear Accelerator Graviton Cannon Compact Tesla Bomb Launcher Advanced Remote Datajack Peak State ------------ > --- POWER ------------ Quantum Reactor Vortex Chain Reactor > --- PROPULSION ------- High-density Centrium Heavy Treads High-density Centrium Heavy Treads > --- UTILITY ---------- Advanced Cryofiber Web Experimental Heat Sink Experimental Heat Sink Huge Storage Unit Experimental Targeting Computer Core Analyzer Centrium Medium Armor Plating Graphene Brace Advanced Shield Generator System Mapper A0-MCA's Component Scanner > --- WEAPON ----------- Hypercooled Linear Accelerator Hypercooled Linear Accelerator Graviton Cannon Sigix Broadsword > --- INVENTORY -------- Improved Quantum Reactor Improved Quantum Reactor High-density Centrium Heavy Treads High-density Centrium Heavy Treads Compact Battery Advanced Matter Compressor Advanced Signal Interpreter Precision Matter Filter Experimental Phase Shifter Cloaking Device Centrium Medium Armor Plating Graphene Brace Thermal Barrier Experimental Force Field High-powered Tractor Beam Dimensional Node Initializer Dimensional Node Initializer Transdimensional Reconstructor Supercharged TR Terrabomb Compact Tesla Bomb Launcher Tactical Quantum Warhead Advanced Remote Datajack [Rating: 222] Favorites ----------- Power Quantum Reactor Engine Light Angular Momentum Engine Power Core Neutrino Core Reactor Quantum Reactor Propulsion Overtuned Huge Scrapsphere Treads High-density Centrium Heavy Treads Leg Enhanced Flexi-carbon Leg Wheel Overtuned Huge Scrapsphere Utility Advanced Heat Sink Device Advanced Heat Sink Storage Huge Storage Unit Processor Core Analyzer Hackware System Mapper Protection Centrium Medium Armor Plating Artifact Phase Redirector Weapon Hypercooled Linear Accelerator Energy Gun Gamma Rifle Energy Cannon Cooled Particle Cannon Ballistic Gun Overtuned Coil Gun Ballistic Cannon Hypercooled Linear Accelerator Launcher Compact Tesla Bomb Launcher Special Weapon Plasma Cutter Impact Weapon Core Stripper Slashing Weapon Sigix Broadsword Build | -11 -10 -10 -9 -9 -6 -6 -6 -5 -5 -5 -5 -4 -4 -4 -4 -4 -4 -3 -3 -2 -2 -2 ------- Run | Yrd Mat Sub Rec Scr Fac Low Low Fac Upp Upp Zhi Pro Fac Ext Cet Arc Hub Res Tes Res Qua Frg Slots Evolved 16 | . . . . . 8 . . 2 . . . . 2 . . . . 2 . 2 . . Power 2 | . . . . . 1 . . . . . . . . . . . . . . 1 . . Propulsion 2 | . . . . . 2 . . . . . . . . . . . . . . . . . Utility 9 | . . . . . 4 . . 2 . . . . 2 . . . . 1 . . . . Weapon 3 | . . . . . 1 . . . . . . . . . . . . 1 . 1 . . Parts Attached 278 | 6 2 9 . 2 56 16 . 10 3 2 3 1 18 6 7 2 4 8 17 11 64 31 Power 42 | 1 . 1 . 1 7 4 . 2 . 1 . . 4 1 2 . . 1 3 2 6 6 Engine 10 | 1 . 1 . 1 4 2 . . . 1 . . . . . . . . . . . . Core 13 | . . . . . 3 2 . 2 . . . . 4 1 . . . 1 . . . . Reactor 19 | . . . . . . . . . . . . . . . 2 . . . 3 2 6 6 Propulsion 39 | 2 . 3 . . 19 3 . . . . . . 1 . . . . 1 3 1 3 3 Treads 15 | 2 . 1 . . 3 . . . . . . . . . . . . . 2 1 3 3 Leg 2 | . . . . . . . . . . . . . . . . . . 1 1 . . . Wheel 22 | . . 2 . . 16 3 . . . . . . 1 . . . . . . . . . Hover . | . . . . . . . . . . . . . . . . . . . . . . . Flight . | . . . . . . . . . . . . . . . . . . . . . . . Utility 106 | 1 1 1 . . 15 5 . 7 1 . 2 1 9 3 4 . 2 3 8 4 26 13 Device 56 | . . . . . 7 3 . 2 1 . 1 1 5 2 2 . 1 1 3 2 15 10 Storage 5 | 1 . 1 . . . . . 1 . . . . . . . . . 1 . . 1 . Processor 14 | . 1 . . . 1 . . 1 . . . . 2 . . . . 1 . 2 6 . Hackware 10 | . . . . . 3 . . 1 . . . . 2 . . . 1 . 2 . . 1 Protection 19 | . . . . . 4 2 . 2 . . 1 . . 1 2 . . . 3 . 2 2 Artifact 2 | . . . . . . . . . . . . . . . . . . . . . 2 . Weapon 91 | 2 1 4 . 1 15 4 . 1 2 1 1 . 4 2 1 2 2 3 3 4 29 9 Energy Gun 32 | 1 . 3 . . 2 . . . 1 . . . 2 . 1 . . 1 2 1 12 6 Energy Cannon 13 | . . . . 1 6 1 . . 1 1 1 . . . . . . . . . 2 . Ballistic Gun 25 | 1 . 1 . . 4 2 . . . . . . 1 1 . 1 1 1 1 2 6 3 Ballistic Cannon 9 | . . . . . 2 . . . . . . . . . . . 1 . . . 6 . Launcher 7 | . 1 . . . 1 . . 1 . . . . . . . 1 . 1 . 1 1 . Special Weapon 3 | . . . . . . 1 . . . . . . 1 1 . . . . . . . . Impact Weapon 1 | . . . . . . . . . . . . . . . . . . . . . 1 . Slashing Weapon 1 | . . . . . . . . . . . . . . . . . . . . . 1 . Piercing Weapon . | . . . . . . . . . . . . . . . . . . . . . . . Special Melee Weapon . | . . . . . . . . . . . . . . . . . . . . . . . Unidentified Prototypes 28 | . . . . . 2 1 . . . . 3 1 . . 2 . 1 4 9 1 4 . Corrupted Parts 19 | . . 1 . . . . . . . . . . 1 . 2 . 1 1 5 . 6 2 System Corruption 113 | . . 3 . . . . . . . . . . 8 . 22 . 4 3 26 . 39 8 Parts Lost 119 | . . 2 . . 38 2 . 6 . 1 . . 8 3 3 . . 2 6 3 24 21 Power 22 | . . 2 . . 6 . . 2 . 1 . . 2 1 . . . . . . 3 5 Propulsion 21 | . . . . . 18 2 . . . . . . . . . . . . . . . 1 Utility 45 | . . . . . 7 . . 3 . . . . 4 . 1 . . 2 4 2 12 10 Weapon 31 | . . . . . 7 . . 1 . . . . 2 2 2 . . . 2 1 9 5 Highest Loss Streak 9 | . . 1 . . 9 2 . 3 . 1 . . 2 1 2 . . 1 4 2 7 8 To Critical Strikes . | . . . . . . . . . . . . . . . . . . . . . . . Average Backups 22 | 1 6 9 24 23 26 27 27 25 27 27 27 27 26 25 25 25 25 21 20 21 22 20 Power 2 | . 1 . . . 1 . 2 2 3 2 2 2 2 1 2 3 3 3 4 4 3 1 Propulsion 2 | . 2 3 7 6 1 . 1 1 1 1 1 1 1 1 2 3 3 3 3 2 1 2 Utility 10 | . . 1 4 5 12 15 13 11 13 16 16 17 16 16 12 12 13 9 8 8 9 8 Weapon 6 | . 1 4 12 9 7 8 8 7 6 5 4 4 4 4 6 6 5 4 3 4 4 4 Tool/Special . | . . . . . . . . . . . . . . . . . . . . . . . Unused Backups 70 | . . . . 9 6 7 . . 4 . 1 1 5 1 3 . 1 . 1 4 19 8 Power 9 | . . . . . 1 . . . 1 . . . 1 . 1 . . . . 1 4 . Propulsion 6 | . . . . 2 . 1 . . . . . . . . . . . . . . 2 1 Utility 31 | . . . . . 2 6 . . . . 1 1 2 1 2 . 1 . 1 1 10 3 Weapon 21 | . . . . 7 3 . . . 3 . . . 1 . . . . . . 2 3 2 Tool/Special 3 | . . . . . . . . . . . . . 1 . . . . . . . . 2 Average Slot Usage (%) 79 | . 98 81 71 73 81 70 73 71 70 69 54 69 75 77 74 76 78 83 84 85 83 85 Engine 2 | . 14 2 . 5 7 12 . . . 3 5 5 3 . . . . . . . . . Core 1 | . . . . . 1 . 13 10 11 6 5 5 5 10 4 . . 3 3 . . . Reactor 5 | . . . . . . . . . . . . . . . 5 10 10 5 4 12 10 10 Treads 4 | . 28 20 . . 4 . . . . . . . . . . . . . . . 7 8 Wheel 8 | . . 7 28 28 17 8 13 11 11 11 11 11 10 10 10 10 10 9 8 7 . . Device 16 | . . . . . 11 16 20 16 16 17 17 16 15 22 25 26 24 32 27 20 20 20 Storage 6 | . 14 14 14 14 6 6 6 5 5 5 5 5 5 5 5 5 5 4 4 4 4 4 Processor 6 | . 12 8 . . . . . 1 . . . . 5 6 5 5 5 3 4 4 11 13 Hackware 3 | . . . . . 8 . . . . . . . 9 3 . . 1 . 5 8 5 1 Protection 3 | . . . . . 4 4 . 5 5 5 5 5 3 3 5 5 5 3 3 4 3 5 Energy Gun 4 | . 3 9 . . 1 . . . 1 . . . 3 1 1 . . 2 6 11 7 8 Energy Cannon 3 | . . . . 1 8 19 6 4 9 6 . 5 4 . 9 10 1 . . . . . Ballistic Gun 7 | . 14 15 28 22 4 . 13 10 5 9 1 11 7 13 1 2 14 15 11 9 1 4 Ballistic Cannon 2 | . . . . . 2 . . . . . . . . . . . . . . . 6 4 Peak Build Rating 222 | 6 7 11 12 18 60 82 82 93 98 94 95 94 111 111 120 125 129 152 172 178 222 216 Average Rating 121 | 4 6 8 11 13 46 58 82 85 95 92 78 93 102 109 114 121 127 147 152 169 192 202 On Entrance 88 | . 6 7 11 12 18 57 82 82 90 94 93 95 94 108 111 117 125 127 151 161 174 211 Naked Turns . | . . . . . . . . . . . . . . . . . . . . . . . Heaviest Build 227 | 11 13 146 146 157 186 202 191 204 200 201 200 200 200 214 221 227 227 223 172 193 220 218 Greatest Support 200 | 40 40 40 32 32 63 40 40 40 40 40 40 40 40 40 40 40 40 40 40 160 180 200 Greatest Overweight (x) 20 | . . 4 4 4 16 20 4 5 4 5 4 4 4 5 5 5 5 7 7 4 2 1 Average Overweight (x) 3 | . . 1 4 4 4 13 4 4 4 4 4 4 4 4 4 5 5 3 3 3 . . Largest Inventory Capacity 30 | 8 8 30 30 30 30 30 30 30 30 30 30 30 30 30 30 30 30 30 25 25 25 25 Average Capacity 26 | 6 8 16 30 30 30 30 30 30 30 30 30 30 30 30 30 30 30 25 25 25 25 25 Most Carried 30 | 4 8 26 30 30 30 30 30 30 30 30 30 30 30 30 30 30 30 29 25 25 25 25 Average Carried 25 | 1 7 11 28 26 27 28 30 28 29 29 29 29 29 29 29 29 29 24 23 24 23 22 Final Capacity 30 | 8 8 30 30 30 30 30 30 30 30 30 30 30 30 30 30 30 30 25 25 25 25 25 Final Carried 30 | 4 8 26 30 26 30 30 30 30 30 29 30 30 30 30 30 30 29 25 23 19 25 19 Class Distribution -------------------- 36% | Scavenger-Tank 15% | Scavenger-Scrapper 13% | Hauler-Mutant 11% | Hauler-Tank 5% | Scavenger-Gunner 4% | Hauler-Scrapper 3% | Hauler-Gunner 3% | Mutant 3% | Scavenger-Mutant Dominant Class ---------------- Mutant | -10/Materials Mutant | -10/Subcaves Hauler-Mutant | -9/Recycling Hauler-Mutant | -9/Scraptown Hauler-Tank | -6/Factory Hauler-Tank | -6/Lower Caves Scavenger-Scrapper | -6/Lower Caves Scavenger-Scrapper | -5/Factory Scavenger-Scrapper | -5/Upper Caves Hauler-Scrapper | -5/Upper Caves Hauler-Scrapper | -5/Zhirov Hauler-Scrapper | -4/Proximity Caves Scavenger-Scrapper | -4/Factory Scavenger-Scrapper | -4/Extension Scavenger-Scrapper | -4/Cetus Scavenger-Scrapper | -4/Archives Scavenger-Scrapper | -4/Hub_04(d) Scavenger-Scrapper | -3/Research Scavenger-Scrapper | -3/Testing Scavenger-Tank | -2/Research Scavenger-Tank | -2/Quarantine Scavenger-Tank | -2/Protoforge Resources | -11 -10 -10 -9 -9 -6 -6 -6 -5 -5 -5 -5 -4 -4 -4 -4 -4 -4 -3 -3 -2 -2 -2 ----------- Run | Yrd Mat Sub Rec Scr Fac Low Low Fac Upp Upp Zhi Pro Fac Ext Cet Arc Hub Res Tes Res Qua Frg Matter Collected 15312 | 260 20 161 27 30 2365 1192 . 303 284 131 . 241 601 1039 127 . 421 574 665 600 3383 2888 Remotely 1717 | . . . . . . . . . . . . . . . . . . . . . . 1717 Salvage Created 24312 | . 43 130 . . 4256 706 69 819 154 171 . 205 1331 2315 514 317 367 320 1372 1308 4458 5457 Parts 1065 | . 5 9 . . 149 34 6 54 5 11 . 9 56 99 24 16 12 12 77 59 210 218 Haulers Intercepted 5 | . . . . . 2 . . 1 . . . . 1 . . . 1 . . . . . Recyclers Shooed 14 | . 1 . . . 11 . . 1 . . . . 1 . . . . . . . . . Parts Field Recycled . | . . . . . . . . . . . . . . . . . . . . . . . Retrieved Matter . | . . . . . . . . . . . . . . . . . . . . . . . Parts Self-Destructed 39 | . . 7 . . . 9 5 . 1 11 . 6 . . . . . . . . . . Prevented 6 | . . 2 . . . . . . 4 . . . . . . . . . . . . . Kills | -11 -10 -10 -9 -9 -6 -6 -6 -5 -5 -5 -5 -4 -4 -4 -4 -4 -4 -3 -3 -2 -2 -2 ------- Run | Yrd Mat Sub Rec Scr Fac Low Low Fac Upp Upp Zhi Pro Fac Ext Cet Arc Hub Res Tes Res Qua Frg Combat Hostiles Destroyed 323 | . 4 5 . . 64 2 3 18 2 3 . 2 12 28 7 7 2 4 20 15 50 75 Guns 177 | . . 2 . . 18 . 2 12 1 2 . 1 6 28 . . 2 4 20 14 30 35 Cannons 52 | . . . . . 32 1 1 2 . 1 . 1 1 . 2 . . . . . . 11 AOE 37 | . 4 3 . . 9 . . 4 . . . . 1 . 1 7 . . . . 2 6 Classes Destroyed 28 | . 2 3 . . 10 3 . . . . . . 1 3 . . . . . . 2 4 Worker 19 | . 1 . . . 12 . . 1 . . . . 2 . . . . . 1 1 . 1 Builder 9 | . . . . . 4 . . 1 . . . . . 2 . . . . . . 2 . Tunneler 3 | . . . . . 1 . . . . . . . 2 . . . . . . . . . Hauler 5 | . . . . . 2 . . 1 . . . . 1 . . . 1 . . . . . Recycler 11 | . . . . . 6 . . . . . . . 1 2 . . 1 . 1 . . . Mechanic 3 | . . . . . 1 . . . . . . . . 1 . . . . . . . 1 Operator 2 | . . . . . . . . . . . . . 1 . . . 1 . . . . . Drone 1 | . . . . . . . . . . . . . . . . . . . . . . 1 Turret 2 | . . 2 . . . . . . . . . . . . . . . . . . . . Watcher 5 | . . . . . 1 . . . . . . . 1 1 . . . . . 1 . 1 Swarmer 33 | . . 4 . . 8 . 3 5 . . . . . 3 . . . . 6 . . 4 Grunt 106 | . 4 . . . 32 . . 2 . . . . . 10 . 7 . . 5 7 15 24 Brawler 11 | . . . . . 3 . . . . . . . . 1 . . . . . . 1 6 Duelist 6 | . . . . . . . . . . . . . . 3 . . . . . . 2 1 Protector 5 | . . . . . . . . . . . . . . 1 . . . . . . . 4 Sentry 33 | . . . . . 5 1 . . 1 1 . . 6 8 . . 1 2 . 3 . 5 Demolisher 1 | . . . . . . . . . . . . . . 1 . . . . . . . . Specialist 2 | . . . . . . . . . . . . . . . . . . . . . . 2 Hunter 31 | . . . . . 8 . . 6 1 . . . 4 . . . 1 2 . 1 6 2 Programmer 50 | . . . . . 8 . . 5 . 2 . 2 2 . . . . . 8 4 9 10 Behemoth 2 | . . . . . . 1 . . . . . . . . . . . . . . . 1 Cetus Guard 7 | . . . . . . . . . . . . . . . 7 . . . . . . . Quarantine Guard 12 | . . . . . . . . . . . . . . . . . . . . . 12 . Lightning 3 | . . . . . . . . . . . . . . . . . . . . . 3 . Hotshot 6 | . . . . . . . . . . . . . . . . . . . . . . 6 Decapitator 6 | . . . . . . . . . . . . . . . . . . . . . . 6 Immortal 2 | . . . . . . . . . . . . . . . . . . . . . . 2 Overlord 1 | . . . . . . . . . . . . . . . . . . . . . . 1 Alpha 7 1 | . . . . . . . . . . . . . . . . . . . . . 1 . Fortress 1 | . . . . . . . . . . . . . . . . . . . . . 1 . Protovariant G 1 | . . . . . . . . . . . . . . . . . . . 1 . . . Subdweller 1 | . . 1 . . . . . . . . . . . . . . . . . . . . Scrapoid 5 | . . . . . . 5 . . . . . . . . . . . . . . . . Decomposer 2 | . . . . . . 2 . . . . . . . . . . . . . . . . Samaritan 2 | . . . . . . 1 . . . . . 1 . . . . . . . . . . Thug 2 | . . . . . 1 . . . . . . . . 1 . . . . . . . . Best Kill Streak 10 | . 3 4 . . 8 1 3 8 1 1 . 2 3 9 4 7 2 2 6 4 6 10 Combat Bots Only 10 | . 2 4 . . 7 1 3 7 1 1 . 2 3 8 4 7 1 2 6 4 6 10 Max Kills in Single Turn 4 | . 2 2 . . 3 1 1 4 1 1 . 1 1 2 1 4 1 1 2 1 2 2 Gunslinging 1 | . . . . . . . . . . . . . . 1 . . . . 1 . . 1 Exploded 4 | . 2 2 . . 2 . . 3 . . . . 1 . 1 4 . . . . 2 1 Melee . | . . . . . . . . . . . . . . . . . . . . . . . Uniques/NPCs Destroyed . | . . . . . . . . . . . . . . . . . . . . . . . Combat | -11 -10 -10 -9 -9 -6 -6 -6 -5 -5 -5 -5 -4 -4 -4 -4 -4 -4 -3 -3 -2 -2 -2 -------- Run | Yrd Mat Sub Rec Scr Fac Low Low Fac Upp Upp Zhi Pro Fac Ext Cet Arc Hub Res Tes Res Qua Frg Hostile Shots Fired 2247 | . 9 99 . . 443 47 7 134 17 20 . 12 121 115 41 10 36 32 138 127 345 494 Missed 640 | . 4 51 . . 152 19 3 37 8 8 . 5 40 38 12 2 11 10 33 29 80 98 Intercepted 2 | . . . . . . . . . . . . . . . . . . . . . . 2 Hits 1607 | . 5 48 . . 291 28 4 97 9 12 . 7 81 77 29 8 25 22 105 98 265 396 Melee 50 | . . . . . . 2 . . . . . . . 7 . . . . . . . 41 Projectile 1557 | . 5 48 . . 291 26 4 97 9 12 . 7 81 70 29 8 25 22 105 98 265 355 AOE 7 | . . . . . 1 . . . . . . . 2 . . . . . . . . 4 Critical Strikes 118 | . . . . . 9 . . 3 1 . . 1 3 7 4 . 2 1 12 9 25 41 Actively Blocked 82 | . . . . . . . . . . . . . 1 2 4 . 1 1 . 7 25 41 Part Disruptions 7 | . . . . . 2 . . . . 1 . . . . . . . . . 1 2 1 Actively Blocked 1 | . . . . . . . . . . . . . . . . . . . . . 1 . Damage Taken 30337 | . 77 357 . . 4722 312 52 1618 206 241 . 145 1734 1419 634 211 563 420 1881 1837 6036 7872 Core 3037 | . 30 73 . . 688 47 12 74 . 19 . . 152 149 42 11 26 21 227 123 782 561 Absorbed by Shields 6292 | . . . . . . . . . . . . . 89 500 115 176 . 138 723 456 878 3217 Reduced by Siege Mode 997 | . . . . . . . . . . . . . . . . . . . . . 51 946 Redirected to Core 288 | . . . . . . . . . . . . . . . . . . . . . 288 . Ignored by Resistances 1572 | . . . . . . . . . . . . . . . . . 29 . . . . 1543 Regen/Repaired (Parts) 372 | . . . . . . . . 70 . . . . 20 114 10 . . 40 52 30 36 . Core Remaining (%) 66 | 100 . . . 58 . . 12 . . . . 84 . . . . 66 . 80 . . . Volleys Fired 1116 | . 12 31 . . 237 27 3 90 8 14 . 10 76 96 14 18 23 20 65 43 142 187 Largest 5 | . 1 1 . . 3 3 3 3 3 3 . 3 3 3 2 1 3 4 4 5 5 5 Hottest 399 | . 30 40 . . 250 270 94 94 144 94 . 94 209 164 240 49 102 240 182 340 399 335 Shots Fired 3028 | . 12 35 . . 558 70 9 152 16 30 1 31 183 284 27 15 65 63 206 192 526 553 Gun 2196 | . . 32 . . 209 3 6 59 6 24 1 21 143 284 1 11 65 63 206 192 476 394 Cannon 730 | . . . . . 339 65 3 87 10 6 . 10 39 . 25 . . . . . 37 109 Launcher 98 | . 12 3 . . 10 . . 6 . . . . . . . 4 . . . . 13 50 Special 4 | . . . . . . 2 . . . . . . 1 . 1 . . . . . . . Kinetic 1584 | . . 8 . . 256 3 6 59 6 24 1 21 101 248 . 11 65 52 144 92 231 256 Thermal 1098 | . . 4 . . 292 65 3 87 3 6 . 10 26 36 1 . . 11 62 100 145 247 Explosive 35 | . 12 3 . . 10 . . 6 . . . . . . . 4 . . . . . . Electromagnetic 307 | . . 20 . . . . . . 7 . . . 55 . 25 . . . . . 150 50 Robot Hit Streak 40 | . 4 7 . . 19 10 10 9 14 5 . 3 16 19 19 13 16 5 9 12 24 40 Robot Miss Streak 6 | . 2 5 . . 6 3 1 4 2 2 . 4 4 6 2 . 2 4 4 5 4 6 Penetration Max 2 | . . . . . 1 . . 1 . . . . 2 2 . . 1 . 1 1 . . Secondary Targets 27 | . . . . . 1 . . . . . . . . 8 . . . 1 5 2 2 8 Max Gunslinging Chain 1 | . . . . . 1 . . . . . . . . 1 . . . 1 1 1 1 1 Autonomous 6 | . . 6 . . . . . . . . . . . . . . . . . . . . Shots Hit Robots 1799 | . 6 23 . . 336 45 3 53 12 15 . 14 100 200 23 13 29 24 109 111 302 381 Core Hits 915 | . 16 15 . . 214 16 3 33 2 5 . 6 45 91 11 26 11 11 42 42 126 200 Critical Kills 30 | . . . . . 1 . 1 3 1 . . . 2 7 . . 2 2 6 3 1 1 Critical Parts Destroyed 36 | . . . . . . . . 1 1 . . 1 2 12 . 2 2 . 6 5 2 2 Critical Strikes 101 | . . 1 . . 6 . 1 4 2 . . 1 7 25 2 2 4 4 15 8 11 8 Burn 16 | . . . . . . . . . . . . . 3 5 . . . . 3 . 2 3 Meltdown 2 | . . . . . 1 . . . . . . . 1 . . . . . . . . . Destroy 67 | . . . . . . . 1 4 2 . . 1 3 20 . 2 4 4 12 8 3 3 Blast 7 | . . . . . 5 . . . . . . . . . . . . . . . . 2 Corrupt 9 | . . 1 . . . . . . . . . . . . 2 . . . . . 6 . Melee Attacks 7 | . . . . . . . . . . . . . . . . . . . . . 7 . Kinetic 1 | . . . . . . . . . . . . . . . . . . . . . 1 . Impact . | . . . . . . . . . . . . . . . . . . . . . . . Slashing 6 | . . . . . . . . . . . . . . . . . . . . . 6 . Piercing . | . . . . . . . . . . . . . . . . . . . . . . . Sneak Attacks . | . . . . . . . . . . . . . . . . . . . . . . . Combat Hostiles . | . . . . . . . . . . . . . . . . . . . . . . . Follow-up Attacks . | . . . . . . . . . . . . . . . . . . . . . . . Damage Inflicted 63007 | . 567 383 . . 11599 1530 70 2543 354 520 . 477 2752 7712 990 1886 833 649 3452 3082 7943 15665 Guns 38525 | . . 252 . . 3325 16 44 943 132 393 . 326 1932 7712 . 267 833 649 3452 3082 7094 8073 Cannons 12783 | . . . . . 6136 1514 26 668 222 127 . 151 583 . 584 . . . . . . 2772 Explosions 11635 | . 567 131 . . 2129 . . 898 . . . . 237 . 406 1619 . . . . 828 4820 Melee . | . . . . . . . . . . . . . . . . . . . . . . . Ramming 64 | . . . . . 9 . . 34 . . . . . . . . . . . . 21 . Kinetic 27932 | . . 70 . . 4158 16 44 943 132 393 . 326 1238 6899 . 267 833 471 2787 1384 2633 5338 Thermal 20645 | . . 37 . . 5344 1514 26 668 83 127 . 151 601 813 406 . . 178 665 1698 2300 6034 Explosive 5366 | . 567 131 . . 2088 . . 898 . . . . 63 . . 1619 . . . . . . Electromagnetic 9000 | . . 145 . . . . . . 139 . . . 850 . 584 . . . . . 2989 4293 Impact . | . . . . . . . . . . . . . . . . . . . . . . . Slashing . | . . . . . . . . . . . . . . . . . . . . . . . Piercing . | . . . . . . . . . . . . . . . . . . . . . . . Highest Corruption 49 | . . 3 3 . 7 7 7 2 2 4 4 5 8 12 34 34 38 4 45 3 39 49 Average Corruption 13 | . . 3 3 . 4 7 7 1 2 3 4 4 8 8 22 34 37 3 16 2 16 27 Corruption Purged 20 | . . . . . . . . . . . . . . . . . . . . . 20 . Corruption Blocked . | . . . . . . . . . . . . . . . . . . . . . . . Effects 1081 | . . 15 21 . 48 96 1 8 6 4 5 16 17 51 18 7 26 17 48 5 517 155 Message Errors 266 | . . 5 3 . 13 24 1 3 3 1 . 2 7 11 5 2 9 3 8 3 140 23 Matter Fused 218 | . . 2 6 . 8 25 . 1 2 . 2 1 2 5 6 . 5 3 6 . 110 34 Heat Flow Errors 122 | . . 2 3 . 5 9 . . . . 1 5 1 8 1 1 . 2 4 . 72 8 Energy Discharges 107 | . . 2 3 . 4 8 . 2 . 1 . 3 3 3 3 . 1 1 8 . 49 16 Parts Rejected 9 | . . . . . 2 . . . . . . . . 1 . . 1 . 2 . 1 2 Parts Fused 9 | . . . . . . 2 . . . . . . . . 1 . 1 . . . 5 . Data Loss (minor) 146 | . . 3 3 . 4 17 . . 1 2 1 2 3 11 . . . 5 5 . 66 23 Data Loss (major) 49 | . . . 3 . 1 5 . 1 . . . . . 4 . 1 1 . 1 . 27 5 Misfires 41 | . . . . . 5 2 . . . . 1 2 . 2 1 . 1 2 1 1 18 5 Alerts 30 | . . 1 . . 1 4 . . . . . . . 1 1 . 1 1 2 1 16 1 Misdirections 2 | . . . . . . . . . . . . . . . . . 1 . 1 . . . Weapon Failures 82 | . . . . . 5 . . 1 . . . 1 1 5 . 3 5 . 10 . 13 38 Overload Shots 17 | . . . . . 4 6 . 4 . . . . . . 1 . . 1 1 . . . Effects 2 | . . . . . 1 1 . . . . . . . . . . . . . . . . Energy Bleed 1 | . . . . . 1 . . . . . . . . . . . . . . . . . Short Circuit 1 | . . . . . . 1 . . . . . . . . . . . . . . . . Overflow Damage 463 | . . . . . 198 67 . 39 33 7 . . 8 . . 38 . . . . . 73 Projectiles 314 | . . . . . 142 67 . 16 33 7 . . 8 . . . . . . . . 41 Explosions 149 | . . . . . 56 . . 23 . . . . . . . 38 . . . . . 32 Melee . | . . . . . . . . . . . . . . . . . . . . . . . Knockbacks 45 | . . . . . 21 . . . . . . . . . . . . . . . . 24 Impact . | . . . . . . . . . . . . . . . . . . . . . . . Kinetic 42 | . . . . . 18 . . . . . . . . . . . . . . . . 24 Secondary 3 | . . . . . 3 . . . . . . . . . . . . . . . . . Self-Inflicted Damage 683 | . 15 . . . 114 . . 17 . . . . . . . . 69 . 26 . 141 301 Shots 29 | . 1 . . . 5 . . . . . . . . . . . 1 . 1 . 9 12 Rammed 3 | . . . . . 1 . . 1 . . . . . . . . . . . . 1 . Targets Rammed 3 | . . . . . 1 . . 1 . . . . . . . . . . . . 1 . Kicked . | . . . . . . . . . . . . . . . . . . . . . . . Crushed . | . . . . . . . . . . . . . . . . . . . . . . . Highest Temperature 547 | . 10 210 211 . 349 212 28 180 141 192 278 312 277 231 23 17 . . 11 72 547 153 Average Temperature 82 | . 4 97 99 . 88 62 15 55 80 85 143 89 38 56 23 17 . . 7 53 154 76 Received Heat Transfer 3517 | . 36 216 . . 1140 42 . 126 36 . . . 150 303 31 22 45 16 334 222 216 582 Effects 6 | . . . . . 1 . . . . . . . . . . . . . . . 5 . Shutdowns 2 | . . . . . . . . . . . . . . . . . . . . . 2 . Interference 3 | . . . . . . . . . . . . . . . . . . . . . 3 . Matter Decay 1 | . . . . . 1 . . . . . . . . . . . . . . . . . Siege Activations 13 | . . . . . . . . . . . . . . . . . . . . . 1 12 Total Turns 472 | . . . . . . . . . . . . . . . . . . . . . 45 427 Longest Duration 108 | . . . . . . . . . . . . . . . . . . . . . 45 108 Martial Activations . | . . . . . . . . . . . . . . . . . . . . . . . Shielding Activations . | . . . . . . . . . . . . . . . . . . . . . . . Robots Disrupted 1 | . . . . . . . . . . . . . . . . . . . . . 1 . Combat Hostiles 1 | . . . . . . . . . . . . . . . . . . . . . 1 . Robots Corrupted 51 | . . 1 . . . . . . 1 . . . 5 . 4 . . . . . 16 24 Combat Hostiles 48 | . . . . . . . . . 1 . . . 4 . 4 . . . . . 16 23 Parts Fried 97 | . . . . . . . . . 2 . . . 6 1 2 . . . . . 47 39 Impact Corruptions . | . . . . . . . . . . . . . . . . . . . . . . . Robots Melted 8 | . . . . . 5 1 . . . . . . 1 . . . . . . 1 . . Combat Hostiles 7 | . . . . . 5 1 . . . . . . . . . . . . . 1 . . Parts Melted 76 | . . . . . 20 3 . . . . . . 5 4 . . . 2 3 7 31 1 Heat Transferred 28887 | . . 125 . . 7847 1581 37 814 111 148 . 185 1183 1900 250 . . 194 1472 2589 3099 7352 Parts Sabotaged . | . . . . . . . . . . . . . . . . . . . . . . . Parts Stolen 1 | . . . . . . 1 . . . . . . . . . . . . . . . . Parts Stripped 18 | . . . . . . . . . . . . . . . . . . . . . 18 . Power Chain Reactions 8 | . . . . . . . . . . . . . 1 . 1 . . . . . 3 3 Alert | -11 -10 -10 -9 -9 -6 -6 -6 -5 -5 -5 -5 -4 -4 -4 -4 -4 -4 -3 -3 -2 -2 -2 ------- Run | Yrd Mat Sub Rec Scr Fac Low Low Fac Upp Upp Zhi Pro Fac Ext Cet Arc Hub Res Tes Res Qua Frg Maximum Alert Level 5 | . . . . . 5 . . 1 . . . . 3 5 4 3 2 1 1 . 3 5 Low Security (%) 24 | 100 100 . 100 . 16 . . 41 . . . . . . . . . 66 53 100 15 . Level 1 8 | . . . . . 21 . . 58 . . . . . 2 . . 51 33 46 . . . Level 2 23 | . . . . . 26 . . . . . . . 80 75 . 37 48 . . . 23 18 Level 3 37 | . . . . . 28 . . . . . . . 19 16 25 62 . . . . 60 39 Level 4 4 | . . . . . 4 . . . . . . . . 1 74 . . . . . . 27 Level 5 1 | . . . . . 2 . . . . . . . . 3 . . . . . . . 14 High Security . | . . . . . . . . . . . . . . . . . . . . . . . Max Security . | . . . . . . . . . . . . . . . . . . . . . . . Peak Influence 1843 | . 117 . 148 . 1672 . . 386 . . . . 777 1843 1202 1001 543 290 302 155 958 1839 Initial 1032 | . . . 148 . . . . 224 . . . . 600 374 1032 452 332 285 36 99 69 538 Average 571 | . 38 . 26 . 575 . . 241 . . . . 634 665 1127 750 404 158 159 121 635 1097 Influence Increases 14708 | . 175 675 22 . 2613 55 70 645 50 70 . 50 1479 2197 380 639 401 141 627 447 1813 2159 Destroy 0b10 Robot/C 6980 | . 80 120 . . 1280 40 60 360 40 60 . 40 300 960 160 260 40 80 400 300 1000 1400 Destroy 0b10 Robot/NC 345 | . 5 . . . 135 5 . 15 . . . . 45 35 10 10 15 . 10 10 10 40 Destroy Leader 1238 | . 20 . . . 286 10 10 70 10 10 . 10 114 92 . . 12 30 60 92 220 192 Allied During Kill 1226 | . . . . . . . . . . . . . 19 778 159 270 . . . . . . Successful Hack 107 | . . . 22 . . . . . . . . . 2 31 . . . . 7 18 13 14 Disable Machine 1545 | . 30 . . . 525 . . 30 . . . . 120 60 15 45 105 15 105 15 255 225 Anti-Garrison Action 300 | . . . . . . . . . . . . . . . . . . . . . 150 150 Destroy Structure 1437 | . 40 . . . 177 . . 140 . . . . 264 196 36 54 214 16 30 12 150 108 Advance Influence 600 | . . . . . . . . . . . . . 600 . . . . . . . . . Lose Combat Pursuer 930 | . . 555 . . 210 . . 30 . . . . 15 45 . . 15 . 15 . 15 30 Influence Decreases 12869 | . 174 367 331 . 952 1348 81 633 317 172 . 50 714 1119 1091 820 809 620 513 501 979 1278 Entered New Map 4481 | . . 1 161 . . 616 71 133 137 21 . . . 391 811 680 619 258 28 79 55 420 Time Decay 6588 | . 174 346 170 . 572 712 10 440 180 141 . 50 404 498 190 40 190 342 425 392 664 648 Search Patrol Dispatched 150 | . . . . . . . . . . . . . 150 . . . . . . . . . Lost Part 1156 | . . 20 . . 380 20 . 60 . 10 . . 80 30 30 . . 20 60 30 206 210 Lost Ally 440 | . . . . . . . . . . . . . 80 200 60 100 . . . . . . Purge Threat 54 | . . . . . . . . . . . . . . . . . . . . . 54 . Squads Dispatched 88 | . 1 . . . 28 . . 7 . . . . 7 6 . . 2 5 7 4 7 14 Investigation 24 | . . . . . 11 . . 3 . . . . 2 2 . . 1 3 . 1 1 . Extermination 23 | . . . . . 7 . . 2 . . . . 2 . . . . . 3 2 3 4 Reinforcement 17 | . 1 . . . 5 . . 2 . . . . . 1 . . . 2 1 1 1 3 Assault 14 | . . . . . 2 . . . . . . . . 3 . . . . . . 2 7 Garrison 10 | . . . . . 3 . . . . . . . 3 . . . 1 . 3 . . . Intercept . | . . . . . . . . . . . . . . . . . . . . . . . Searches Triggered 1 | . . . . . . . . . . . . . 1 . . . . . . . . . Construction Impeded 7 | . . . . . 4 . . 1 . . . . . 1 . . . . . . . 1 Haulers Reinforced 1 | . . . . . . . . . . . . . . . . . . 1 . . . . Active Scanning Responses . | . . . . . . . . . . . . . . . . . . . . . . . Cargo Convoy Interrupts . | . . . . . . . . . . . . . . . . . . . . . . . Stealth | -11 -10 -10 -9 -9 -6 -6 -6 -5 -5 -5 -5 -4 -4 -4 -4 -4 -4 -3 -3 -2 -2 -2 --------- Run | Yrd Mat Sub Rec Scr Fac Low Low Fac Upp Upp Zhi Pro Fac Ext Cet Arc Hub Res Tes Res Qua Frg Distress Signals 22 | . 1 . . . 6 . . . . . . . . 2 2 1 3 5 1 . . 1 Communications Jammed 227 | . . . . . . . . . . . . 3 18 79 106 . . . 13 . 8 . Distress Signals 216 | . . . . . . . . . . . . . 10 79 106 . . . 13 . 8 . Times Spotted 508 | . 8 36 . . 105 4 2 24 2 3 . 5 26 49 10 9 7 7 29 18 55 109 Peak Tracking Total 18 | . 3 3 . . 7 2 2 9 1 1 . 3 3 18 5 10 3 2 5 4 4 8 Tactical Retreats 23 | . . 3 . . 11 1 . 1 . . . . 1 2 . . 1 . 1 . 1 1 Traps | -11 -10 -10 -9 -9 -6 -6 -6 -5 -5 -5 -5 -4 -4 -4 -4 -4 -4 -3 -3 -2 -2 -2 ------- Run | Yrd Mat Sub Rec Scr Fac Low Low Fac Upp Upp Zhi Pro Fac Ext Cet Arc Hub Res Tes Res Qua Frg Traps Triggered 30 | . . . . . 5 . . 2 . . . . 1 8 . . . 2 2 . 4 6 Indirectly 5 | . . . . . . . . . . . . . . . . . . . . . 1 4 Trap Hack Attempts . | . . . . . . . . . . . . . . . . . . . . . . . Triggered . | . . . . . . . . . . . . . . . . . . . . . . . Disarmed . | . . . . . . . . . . . . . . . . . . . . . . . Reprogrammed . | . . . . . . . . . . . . . . . . . . . . . . . Reused . | . . . . . . . . . . . . . . . . . . . . . . . Traps Extracted . | . . . . . . . . . . . . . . . . . . . . . . . Installed . | . . . . . . . . . . . . . . . . . . . . . . . Triggered . | . . . . . . . . . . . . . . . . . . . . . . . Most Traps Carried 2 | . . 2 2 2 . . . . . . . . . . . . . . . . . . Machines | -11 -10 -10 -9 -9 -6 -6 -6 -5 -5 -5 -5 -4 -4 -4 -4 -4 -4 -3 -3 -2 -2 -2 ---------- Run | Yrd Mat Sub Rec Scr Fac Low Low Fac Upp Upp Zhi Pro Fac Ext Cet Arc Hub Res Tes Res Qua Frg Machines Disabled 116 | . 2 1 . . 35 . . 2 . . . . 8 9 1 3 7 1 8 1 18 20 Max in Single Turn 6 | . 2 1 . . 6 . . 1 . . . . 1 1 1 1 5 1 2 1 3 2 Garrison Access 4 | . . . . . . . . 1 . . . . . . . . . . . 1 1 1 Network Hub 1 | . . . . . . . . . . . . . . . . . 1 . . . . . Machines Repaired . | . . . . . . . . . . . . . . . . . . . . . . . Machines Dismantled 1 | . . . . . . . . . . . . . . 1 . . . . . . . . Machines Sabotaged . | . . . . . . . . . . . . . . . . . . . . . . . Overloaded Fab Kills . | . . . . . . . . . . . . . . . . . . . . . . . Hacking | -11 -10 -10 -9 -9 -6 -6 -6 -5 -5 -5 -5 -4 -4 -4 -4 -4 -4 -3 -3 -2 -2 -2 --------- Run | Yrd Mat Sub Rec Scr Fac Low Low Fac Upp Upp Zhi Pro Fac Ext Cet Arc Hub Res Tes Res Qua Frg Machines Accessed 67 | . 1 . 5 1 12 . . 8 . . 4 . 4 10 . . 1 4 3 4 5 5 Terminals 40 | . . . 4 . 4 . . 5 . . . . 2 9 . . 1 2 2 2 4 5 Fabricators . | . . . . . . . . . . . . . . . . . . . . . . . Repair Stations 1 | . . . . . . . . . . . . . . . . . . . . . 1 . Recycling Units 15 | . 1 . 1 . 6 . . 1 . . . . 2 1 . . . 2 . 1 . . Scanalyzers . | . . . . . . . . . . . . . . . . . . . . . . . Garrison Access 6 | . . . . . 2 . . 2 . . . . . . . . . . 1 1 . . Total Hacks 148 | . 2 . 9 8 23 . . 18 . . 17 . 6 16 . . 4 7 6 13 10 9 Successful 74 | . 2 . 5 8 8 . . 5 . . 17 . 3 7 . . 1 1 3 6 6 2 Failed 74 | . . . 4 . 15 . . 13 . . . . 3 9 . . 3 6 3 7 4 7 Catastrophic 15 | . . . . . 2 . . 1 . . . . 1 1 . . . 2 1 3 1 3 Database Lockouts . | . . . . . . . . . . . . . . . . . . . . . . . Manual 50 | . . . 6 . 11 . . 9 . . . . 3 5 1 . 2 8 . 4 . 1 Terminals 81 | . . . 6 . 8 . . 12 . . . . 4 15 . . 4 2 5 10 6 9 Fabricators . | . . . . . . . . . . . . . . . . . . . . . . . Repair Stations 4 | . . . . . . . . . . . . . . . . . . . . . 4 . Recycling Units 23 | . 2 . 3 . 7 . . 2 . . . . 2 1 . . . 5 . 1 . . Scanalyzers . | . . . . . . . . . . . . . . . . . . . . . . . Garrison Access 15 | . . . . . 8 . . 4 . . . . . . . . . . 1 2 . . Terminal Hacks 49 | . . . . 8 2 . . 1 . . 17 . 1 5 . . 1 . 3 4 5 2 Record 5 | . . . . . . . . . . . 5 . . . . . . . . . . . Part Schematic 4 | . . . . . . . . . . . 4 . . . . . . . . . . . Robot Analysis 12 | . . . . 8 . . . . . . 4 . . . . . . . . . . . Prototype ID Bank 4 | . . . . . . . . . . . 4 . . . . . . . . . . . Open Door 7 | . . . . . . . . . . . . . 1 4 . . . . . . 2 . Branch Access Points 2 | . . . . . 1 . . . . . . . . . . . . . . 1 . . Recycling Unit Index 1 | . . . . . . . . . . . . . . . . . . . . 1 . . Alert Level 7 | . . . . . 1 . . 1 . . . . . 1 . . . . 1 1 2 . Unreport Threat 1 | . . . . . . . . . . . . . . . . . . . . . 1 . Maintenance Status 1 | . . . . . . . . . . . . . . . . . . . . . . 1 Security Status 1 | . . . . . . . . . . . . . . . . . . . 1 . . . Registered Prototypes 1 | . . . . . . . . . . . . . . . . . . . . 1 . . Zone Layout 2 | . . . . . . . . . . . . . . . . . 1 . 1 . . . Proto ID Catalog 1 | . . . . . . . . . . . . . . . . . . . . . . 1 Fabricator Hacks . | . . . . . . . . . . . . . . . . . . . . . . . Repair Station Hacks 1 | . . . . . . . . . . . . . . . . . . . . . 1 . Scan Component 1 | . . . . . . . . . . . . . . . . . . . . . 1 . Recycling Unit Hacks 3 | . 2 . 1 . . . . . . . . . . . . . . . . . . . Process 1 | . 1 . . . . . . . . . . . . . . . . . . . . . Retrieve Matter 1 | . 1 . . . . . . . . . . . . . . . . . . . . . Retrieve Components 1 | . . . 1 . . . . . . . . . . . . . . . . . . . Scanalyzer . | . . . . . . . . . . . . . . . . . . . . . . . Garrison Access Hacks 2 | . . . . . . . . 1 . . . . . . . . . . . 1 . . Seal Access 2 | . . . . . . . . 1 . . . . . . . . . . . 1 . . Unauthorized Hacks 19 | . . . 4 . 6 . . 3 . . . . 2 2 . . . 1 . 1 . . Terminals 7 | . . . 4 . . . . 2 . . . . . 1 . . . . . . . . Botnet 3 | . . . . . . . . 2 . . . . . 1 . . . . . . . . Skim 4 | . . . 4 . . . . . . . . . . . . . . . . . . . Fabricators . | . . . . . . . . . . . . . . . . . . . . . . . Repair Stations . | . . . . . . . . . . . . . . . . . . . . . . . Recycling Units 12 | . . . . . 6 . . 1 . . . . 2 1 . . . 1 . 1 . . Fedlink 10 | . . . . . 6 . . 1 . . . . 1 . . . . 1 . 1 . . Scrapoids 2 | . . . . . . . . . . . . . 1 1 . . . . . . . . Scanalyzers . | . . . . . . . . . . . . . . . . . . . . . . . Garrison Access . | . . . . . . . . . . . . . . . . . . . . . . . Data Cores Recovered 1 | . . . . . . . . . . . . . 1 . . . . . . . . . Used . | . . . . . . . . . . . . . . . . . . . . . . . Hacking Detections 38 | . 1 . 2 . 6 . . 7 . . . . 1 7 . . 1 2 3 3 1 4 Full Trace Events 9 | . . . . . 3 . . 2 . . . . . 1 . . 1 1 . . 1 . Feedback Events 2 | . . . . . 1 . . . . . . . . . . . . 1 . . . . Corruption 2 | . . . . . 1 . . . . . . . . . . . . 1 . . . . Feedback Blocked . | . . . . . . . . . . . . . . . . . . . . . . . Robot Schematics Acquired 4 | . . . . . . . . . . . . . . . . . . . . . 4 . Robots Built . | . . . . . . . . . . . . . . . . . . . . . . . Authchips . | . . . . . . . . . . . . . . . . . . . . . . . Time . | . . . . . . . . . . . . . . . . . . . . . . . Total Robot Build Rating . | . . . . . . . . . . . . . . . . . . . . . . . Part Schematics Acquired 10 | . . . . . . . . . . . 4 . . . . . . . . . 6 . Parts Built . | . . . . . . . . . . . . . . . . . . . . . . . Authchips . | . . . . . . . . . . . . . . . . . . . . . . . Time . | . . . . . . . . . . . . . . . . . . . . . . . Total Part Build Rating . | . . . . . . . . . . . . . . . . . . . . . . . Parts Repaired . | . . . . . . . . . . . . . . . . . . . . . . . Time . | . . . . . . . . . . . . . . . . . . . . . . . Parts Recycled . | . . . . . . . . . . . . . . . . . . . . . . . Recycled Matter 174 | . 174 . . . . . . . . . . . . . . . . . . . . . Retrieved Matter 174 | . 174 . . . . . . . . . . . . . . . . . . . . . Retrieved Components 2 | . . . 2 . . . . . . . . . . . . . . . . . . . Parts Scanalyzed . | . . . . . . . . . . . . . . . . . . . . . . . Part Schematics Acquired . | . . . . . . . . . . . . . . . . . . . . . . . Parts Damaged . | . . . . . . . . . . . . . . . . . . . . . . . Bothacking | -11 -10 -10 -9 -9 -6 -6 -6 -5 -5 -5 -5 -4 -4 -4 -4 -4 -4 -3 -3 -2 -2 -2 ------------ Run | Yrd Mat Sub Rec Scr Fac Low Low Fac Upp Upp Zhi Pro Fac Ext Cet Arc Hub Res Tes Res Qua Frg Used RIF Installer . | . . . . . . . . . . . . . . . . . . . . . . . Robots Hacked . | . . . . . . . . . . . . . . . . . . . . . . . Non-combat . | . . . . . . . . . . . . . . . . . . . . . . . Combat . | . . . . . . . . . . . . . . . . . . . . . . . Robot Hacks Applied . | . . . . . . . . . . . . . . . . . . . . . . . Relay Couplers Released 8 | . . . . . 4 . . . . . . . . . . . . . . . 3 1 Machine Destruction 4 | . . . . . . . . . . . . . . . . . . . . . 3 1 Programmers 4 | . . . . . 4 . . . . . . . . . . . . . . . . . Fabnet Peak Effective % . | . . . . . . . . . . . . . . . . . . . . . . . Robots Rewired 10 | . . . . . . . . . . . . . . 10 . . . . . . . . Allies Hacked . | . . . . . . . . . . . . . . . . . . . . . . . Hacks Repelled . | . . . . . . . . . . . . . . . . . . . . . . . Allies | -11 -10 -10 -9 -9 -6 -6 -6 -5 -5 -5 -5 -4 -4 -4 -4 -4 -4 -3 -3 -2 -2 -2 -------- Run | Yrd Mat Sub Rec Scr Fac Low Low Fac Upp Upp Zhi Pro Fac Ext Cet Arc Hub Res Tes Res Qua Frg Total Allies 38 | . . . . . . 5 . . . . . . 5 23 5 . . . . . . . Largest Group 16 | . . . . . . 5 . . . . . . 5 16 11 11 . . . . . . Highest-Rated Group 855 | . . . . . . 235 . . . . . . 235 742 855 855 . . . . . . Highest-Rated Ally 159 | . . . . . . 47 . . . . . . 47 159 159 153 . . . . . . Total Orders . | . . . . . . . . . . . . . . . . . . . . . . . Ally Attacks 273 | . . . . . . . . . . . . . 43 161 34 35 . . . . . . Total Damage 7608 | . . . . . . . . . . . . . 671 4804 925 1208 . . . . . . Kills 41 | . . . . . . . . . . . . . 5 25 3 8 . . . . . . Allies Corrupted . | . . . . . . . . . . . . . . . . . . . . . . . Allies Melted . | . . . . . . . . . . . . . . . . . . . . . . . Intel | -11 -10 -10 -9 -9 -6 -6 -6 -5 -5 -5 -5 -4 -4 -4 -4 -4 -4 -3 -3 -2 -2 -2 ------- Run | Yrd Mat Sub Rec Scr Fac Low Low Fac Upp Upp Zhi Pro Fac Ext Cet Arc Hub Res Tes Res Qua Frg Active Infowar (turns) 10001 | . . . . . 1040 1416 23 905 372 338 181 494 968 1092 222 . . 759 1085 933 173 . Optics 2132 | . . . . . . . . . . . . . . . . . . 639 1085 408 . . Structural 818 | . . . . . 818 . . . . . . . . . . . . . . . . . Seismic 4030 | . . . . . 222 1416 23 905 53 302 178 494 437 . . . . . . . . . Machine Analysis 1277 | . . . . . . . . . . . . . 921 356 . . . . . . . . Jamming 6600 | . . . . . . . . . 372 338 177 491 958 1092 222 . . 759 1085 933 173 . Robot Analysis Total 12 | . . . . 8 . . . . . . 4 . . . . . . . . . . . Derelict Logs Recovered 10 | . . 1 . 5 . 3 . . . 1 . . . . . . . . . . . . Drone Launches . | . . . . . . . . . . . . . . . . . . . . . . . Drone Recoveries . | . . . . . . . . . . . . . . . . . . . . . . . Exploration | -11 -10 -10 -9 -9 -6 -6 -6 -5 -5 -5 -5 -4 -4 -4 -4 -4 -4 -3 -3 -2 -2 -2 ------------- Run | Yrd Mat Sub Rec Scr Fac Low Low Fac Upp Upp Zhi Pro Fac Ext Cet Arc Hub Res Tes Res Qua Frg Turns Passed 36220 | 92 554 917 992 3253 3391 3236 23 1090 374 338 181 494 968 1338 394 86 393 767 1085 933 12950 2371 Spaces Moved 18060 | 51 328 474 618 2016 1471 1083 15 771 307 269 144 244 655 827 252 39 216 647 822 659 5412 740 Core 2 | 2 . . . . . . . . . . . . . . . . . . . . . . Treads 6893 | 49 328 333 . . 28 . . . . . . . . . . . . . . 3 5412 740 Legs . | . . . . . . . . . . . . . . . . . . . . . . . Wheels 11165 | . . 141 618 2016 1443 1083 15 771 307 269 144 244 655 827 252 39 216 647 822 656 . . Hover . | . . . . . . . . . . . . . . . . . . . . . . . Flight . | . . . . . . . . . . . . . . . . . . . . . . . Fastest Speed 50 | 50 160 160 160 160 125 110 110 110 110 110 110 110 110 110 110 120 120 100 100 110 160 160 Average Speed 172 | 155 160 171 160 160 165 284 110 111 110 111 110 110 110 113 118 120 120 102 100 110 225 196 Slowest Speed 430 | 160 160 430 160 160 400 380 110 120 110 120 110 110 110 120 120 120 120 140 140 240 320 240 Overloaded Moves . | . . . . . . . . . . . . . . . . . . . . . . . Propulsion Burnouts . | . . . . . . . . . . . . . . . . . . . . . . . Robots Hopped . | . . . . . . . . . . . . . . . . . . . . . . . Potential Cave-ins 11 | . . . . . . . . 3 . . . . . . . . . . . . . 8 Cave-ins Triggered . | . . . . . . . . . . . . . . . . . . . . . . . Teleports 3 | . . . . . . . . . . . . 1 . . . . . . . . . 2 Exploration Rate (%) 46 | 5 48 22 84 78 44 70 6 15 49 40 60 49 12 85 70 73 18 20 87 14 98 23 Regions Visited 22 Branch Regions 16 Pre-discovered Areas 5 | . . 1 . . 1 . . . . . 3 . . . . . . . . . . . Known Exits Taken 8 | . . . . . 1 1 1 1 . . . 1 . . . . . . 1 1 1 . Unknown Exits Taken 14 | 1 1 1 1 1 . . . . 1 1 1 . 1 1 1 1 1 1 . . . . Scrap Searched 28 | . . 8 . 6 . 6 . . 4 . . 4 . . . . . . . . . . Spaces Dug 84 | . . 6 . . 31 . . 13 . . . . 4 2 . . 7 14 3 . 2 2 Terrain Destroyed 1085 | . 43 18 . . 184 11 5 103 . 30 1 14 126 122 18 60 198 19 34 2 65 32 Melee 1 | . . . . . . . . . . . . . . . . . . . . . 1 . Projectile 528 | . . . . . 65 11 5 62 . 30 1 14 65 121 . . 39 18 32 2 44 19 AOE 549 | . 43 18 . . 119 . . 41 . . . . 60 . 18 60 159 . . . 18 13 Terrain Rammed . | . . . . . . . . . . . . . . . . . . . . . . . Walls Destroyed . | . . . . . . . . . . . . . . . . . . . . . . . Machines Disabled . | . . . . . . . . . . . . . . . . . . . . . . . Actions | -11 -10 -10 -9 -9 -6 -6 -6 -5 -5 -5 -5 -4 -4 -4 -4 -4 -4 -3 -3 -2 -2 -2 --------- Run | Yrd Mat Sub Rec Scr Fac Low Low Fac Upp Upp Zhi Pro Fac Ext Cet Arc Hub Res Tes Res Qua Frg Total 21117 | 61 344 548 621 2053 1956 1192 17 896 333 289 167 456 804 1138 327 60 309 715 953 756 5852 1270 Wait 748 | . . . . 2 86 16 . 6 . . . 197 24 40 22 . 54 7 14 15 28 237 Move 18038 | 50 327 473 617 2015 1470 1082 14 770 306 268 143 243 654 826 251 38 215 646 821 658 5411 740 Hop . | . . . . . . . . . . . . . . . . . . . . . . . Pick Up 291 | 5 3 23 4 15 59 21 . 6 6 . 3 2 11 6 13 1 3 4 8 11 70 17 Fast Attach 145 | 5 1 3 . 1 16 5 . 7 . . 9 . 6 3 3 . 3 9 12 5 43 14 Attach 191 | 1 . 4 . 1 46 9 . 7 2 1 1 1 11 3 6 2 2 5 13 8 39 29 Detach 45 | . . 5 . . 5 1 . 2 1 . . . 3 . 2 1 . 1 7 1 8 8 Swap 112 | . 1 3 . . 14 5 . 3 5 5 . 2 6 5 2 . 3 3 . 1 26 28 Drop 258 | . . 6 . 19 22 26 . 4 5 1 11 1 13 4 14 . 6 12 13 14 77 10 Fire 1116 | . 12 31 . . 237 27 3 90 8 14 . 10 76 96 14 18 23 20 65 43 142 187 Melee 7 | . . . . . . . . . . . . . . . . . . . . . 7 . Ram 2 | . . . . . 1 . . 1 . . . . . . . . . . . . . . Kick . | . . . . . . . . . . . . . . . . . . . . . . . Crush 1 | . . . . . . . . . . . . . . . . . . . . . 1 . Escape Stasis 56 | . . . . . . . . . . . . . . 48 . . . 8 . . . . Rewire 99 | . . . . . . . . . . . . . . 99 . . . . . . . . Trap . | . . . . . . . . . . . . . . . . . . . . . . . Miscellaneous 8 | . . . . . . . . . . . . . . 8 . . . . . . . . Route ------- -11/Scrapyard -10/Materials (discovered 3 exits: [*Mat x2] / [*Sub]) -10/Subcaves (discovered 3 exits: [*Mat x2] / *Rec) -9/Recycling (discovered 2 exits: [*Fac] / *Scr) -9/Scraptown (discovered 2 exits: *Fac x2) -6/Factory (discovered 4 exits: *Fac x2 / *Low x2) -6/Lower Caves -6/Lower Caves -5/Factory -5/Upper Caves -5/Upper Caves -5/Zhirov -4/Proximity Caves -4/Factory (discovered 2 exits: [*Upp] / *Ext) -4/Extension (discovered 2 exits: *Res / *Cet) -4/Cetus (discovered 2 exits: *Res / [*Arc]) -4/Archives -4/Hub_04(d) -3/Research (discovered 4 exits: Res x2 / *Tes x2) -3/Testing -2/Research (discovered 2 exits: *Qua x2) -2/Quarantine (discovered 3 exits: [*Acc] / [*Sec] / *Frg) -2/Protoforge (discovered 1 exit: [*Acc]) History --------- Turn | Location | Event 26 | -11/Scrapyard | Discovered new exit (range 15) 93 | -11/Scrapyard | Entered Materials 311 | -10/Materials | Discovered new exit (range 12) 318 | -10/Materials | Build established: Mutant 430 | -10/Materials | Discovered new exit (range 12) 568 | -10/Materials | Discovered new exit (range 9) 647 | -10/Materials | Entered Subcaves 780 | -10/Subcaves | Discovered new exit (range 16) 1070 | -10/Subcaves | Discovered new exit (range 11) 1084 | -10/Subcaves | Discovered new exit (range 9) 1089 | -10/Subcaves | Disturbed a concealed Subdweller 1522 | -10/Subcaves | Build established: Hauler-Mutant 1564 | -10/Subcaves | Entered Recycling 2047 | -9/Recycling | Discovered new exit (range 5) 2506 | -9/Recycling | Scanned before Scraplab entrance 2530 | -9/Recycling | Entered Scraplab 2543 | -9/Recycling | Discovered new exit (range 3) 2556 | -9/Recycling | Entered Scraptown 2556 | -9/Scraptown | System corruption cleaned by C-Scrubber 2771 | -9/Scraptown | Visited UFD Registry 2771 | -9/Scraptown | Registered with UFD as "Scrapdrive" 2812 | -9/Scraptown | Visited Analyses Database 2836 | -9/Scraptown | Visited Scrapoid Pod Storage 2860 | -9/Scraptown | Visited A0-MCA Data Center 2881 | -9/Scraptown | Visited Research Penetration Think Tank 2907 | -9/Scraptown | Visited Infowarlord's Domain 2929 | -9/Scraptown | Visited DA-N13 Charitable Foundation 2947 | -9/Scraptown | Visited Curators Association 3043 | -9/Scraptown | Visited Observation Area 3088 | -9/Scraptown | Visited Chapter 10 3187 | -9/Scraptown | Found DCF Scrap (30 items) 3286 | -9/Scraptown | Given a B- rating by A0-MCA 3290 | -9/Scraptown | Found A0-MCA's Component Scanner 3333 | -9/Scraptown | Found Scrapoid Pod 3497 | -9/Scraptown | Scanned Subdweller tech in exchange for log data 3502 | -9/Scraptown | Learned Research emergency access door positions 3503 | -9/Scraptown | Learned 12 Research zone layouts 3505 | -9/Scraptown | Learned Research interactive machine intel 3506 | -9/Scraptown | Learned Factory garrison access intel 3508 | -9/Scraptown | Learned location of 2 exits from Proximity Caves 3808 | -9/Scraptown | Delivered Scrap Shield to a Scientist 4051 | -9/Scraptown | Found Spectral Analyzer 4532 | -9/Scraptown | Discovered new exit (range 13) 5725 | -9/Scraptown | Met Optimus 5725 | -9/Scraptown | Accepted into 0bPrime 5806 | -9/Scraptown | Discovered new exit (range 3) 5809 | -9/Scraptown | Entered Factory 5809 | -6/Factory | Evolved 8 slots: Power x1, Propulsion x2, Utility x4, Weapon x1 5810 | -6/Factory | Loaded intel: 4 garrison access locations 5918 | -6/Factory | Discovered new exit (range 9) 6118 | -6/Factory | Build established: Hauler-Tank 6138 | -6/Factory | Allied Derelicts emerged from ambush trap array 6298 | -6/Factory | Loaded intel: 8 recycling unit locations 6309 | -6/Factory | Discovered new exit (range 10) 6493 | -6/Factory | Discovered new exit (range 13) 6708 | -6/Factory | Identified exit to Factory 7004 | -6/Factory | Lost 9 parts (2p3n3u1w) 7035 | -6/Factory | Garrison activated, responded to threat 7090 | -6/Factory | Destroyed 7 combat bots 7095 | -6/Factory | Lost 3 parts (1p1n1w) 7228 | -6/Factory | Learned location of Protoforge (-2) 7857 | -6/Factory | Lost 3 parts (1p2n) 7944 | -6/Factory | Core integrity fell below 50% 8046 | -6/Factory | Lost 5 parts (1n2u2w) 8314 | -6/Factory | Lost 3 parts (2n1w) 8609 | -6/Factory | First assault squad dispatched 8915 | -6/Factory | Build established: Hauler-Gunner 9055 | -6/Factory | Identified exit to Lower Caves 9187 | -6/Factory | Core integrity fell below 20% 9200 | -6/Factory | Entered Lower Caves 9202 | -6/Lower Caves | UFD Scientist delivered a prototype 9202 | -6/Lower Caves | Attracted the attention of an 0b10 checkpoint 9217 | -6/Lower Caves | Found Prototype Protection 9217 | -6/Lower Caves | Identified Enh. Scrap Shield 9289 | -6/Lower Caves | Learned Factory terminal intel 9458 | -6/Lower Caves | Spotted B-75 Beast 9562 | -6/Lower Caves | Build established: Hauler-Tank 10050 | -6/Lower Caves | Destroyed B-75 Beast 11857 | -6/Lower Caves | Encountered a Warlord checkpoint 11940 | -6/Lower Caves | Identified exit to Lower Caves 12104 | -6/Lower Caves | Build established: Hauler-Gunner 12146 | -6/Lower Caves | Learned Factory security intel 12176 | -6/Lower Caves | Scrapoid Pod released 06L05-D (x5) 12217 | -6/Lower Caves | Found Scrap Suit 12288 | -6/Lower Caves | Found Scrap Suit 12436 | -6/Lower Caves | Entered another Lower Caves area 12447 | -6/Lower Caves | Discovered exit to Factory (range 12) 12459 | -6/Lower Caves | Entered Factory 12459 | -5/Factory | Evolved 2 slots: Utility x2 12461 | -5/Factory | Loaded intel: 26 terminal locations 12570 | -5/Factory | Build established: Scavenger-Scrapper 12576 | -5/Factory | Discovered new exit (range 16) 12621 | -5/Factory | Identified exit to Upper Caves 13017 | -5/Factory | Destroyed 7 combat bots 13035 | -5/Factory | Lost 3 parts (1p1u1w) 13146 | -5/Factory | Loaded intel: 8 recycling unit locations 13549 | -5/Factory | Entered Upper Caves 13599 | -5/Upper Caves | Attracted the attention of an 0b10 checkpoint 13780 | -5/Upper Caves | Found DCF Scrap (16 items) 13909 | -5/Upper Caves | Discovered new exit (range 14) 13923 | -5/Upper Caves | Entered another Upper Caves area 14126 | -5/Upper Caves | Build established: Hauler-Scrapper 14142 | -5/Upper Caves | Attracted the attention of an 0b10 checkpoint 14212 | -5/Upper Caves | Learned Factory garrison access intel 14251 | -5/Upper Caves | Discovered new exit (range 10) 14261 | -5/Upper Caves | Entered Zhirov 14261 | -5/Zhirov | Discovered new exit (range 3) 14311 | -5/Zhirov | Found Alien Artifact 14311 | -5/Zhirov | Identified Integrated Dissipator 14311 | -5/Zhirov | Installed Integrated Dissipator, increased core heat dissipation (+20) 14327 | -5/Zhirov | Found Alien Artifact 14400 | -5/Zhirov | Learned location of Quarantine (-2) 14400 | -5/Zhirov | Learned location of Testing (-3) 14400 | -5/Zhirov | Learned location of Command (-1) 14442 | -5/Zhirov | Entered Proximity Caves 14442 | -4/Proximity Caves | Identified Transdimensional Reconstructor 14442 | -4/Proximity Caves | Warped through subspace 14443 | -4/Proximity Caves | Identified exit to Factory 14525 | -4/Proximity Caves | Spotter reported a threat 14662 | -4/Proximity Caves | Spotter reported a threat 14715 | -4/Proximity Caves | Spotter reported a threat 14731 | -4/Proximity Caves | Spotter reported a threat 14905 | -4/Proximity Caves | Received a Behemoth hack from an annoying Tinkerer 14936 | -4/Proximity Caves | Entered Factory 14936 | -4/Factory | Evolved 2 slots: Utility x2 14937 | -4/Factory | Loaded intel: 4 garrison access locations 15154 | -4/Factory | Discovered new exit (range 9) 15167 | -4/Factory | Discovered new exit (range 16) 15186 | -4/Factory | Search patrols dispatched 15282 | -4/Factory | Build established: Scavenger-Scrapper 15345 | -4/Factory | Loaded intel: 8 recycling unit locations 15676 | -4/Factory | Build established: Hauler-Scrapper 15697 | -4/Factory | Scrapoids reinforcements arrived? 15733 | -4/Factory | Found Scrap Suit 15765 | -4/Factory | Found Scrap Suit 15767 | -4/Factory | Found Scrap Suit 15778 | -4/Factory | Lost 5 allies 15904 | -4/Factory | Entered Extension 16020 | -4/Extension | Build established: Scavenger-Scrapper 16173 | -4/Extension | Rescued a captive Derelict 16173 | -4/Extension | Rescued a captive Derelict 16235 | -4/Extension | Destroyed 8 combat bots 16404 | -4/Extension | First assault squad dispatched 16445 | -4/Extension | Rescued a captive Derelict 16447 | -4/Extension | Rescued a captive Derelict 16523 | -4/Extension | Scrapoids reinforcements arrived? 16723 | -4/Extension | Spotted B-86 Titan 16736 | -4/Extension | Allies destroyed B-86 Titan 16754 | -4/Extension | Spotted B-86 Titan 16763 | -4/Extension | Allies destroyed B-86 Titan 16791 | -4/Extension | Lost 4 allies 16830 | -4/Extension | Rescued a captive Derelict 16833 | -4/Extension | Rescued a captive Derelict 16897 | -4/Extension | Rescued a captive Derelict 16932 | -4/Extension | System corruption reached 10% 17111 | -4/Extension | Rescued A7 17151 | -4/Extension | Discovered new exit (range 10) 17152 | -4/Extension | Discovered new exit (range 6) 17161 | -4/Extension | Disrupted transfer network 17216 | -4/Extension | Destroyed 8 combat bots 17242 | -4/Extension | Entered Cetus 17242 | -4/Cetus | Accompanied by 9 allies (A7) 17244 | -4/Cetus | Lost 4 allies 17247 | -4/Cetus | Acquired a Cetus Manufacturing Module code from A7 17256 | -4/Cetus | Spotted Cetus Guard 17256 | -4/Cetus | Spotted Cetus Guard 17258 | -4/Cetus | Spotted Cetus Guard 17258 | -4/Cetus | Spotted Cetus Guard 17266 | -4/Cetus | Destroyed Cetus Guard 17269 | -4/Cetus | Destroyed Cetus Guard 17272 | -4/Cetus | Destroyed Cetus Guard 17278 | -4/Cetus | Destroyed Cetus Guard 17373 | -4/Cetus | Escorted A7 to Cetus Mainframe 17390 | -4/Cetus | Discovered new exit (range 15) 17423 | -4/Cetus | Started Cetus Manufacturing Module 17448 | -4/Cetus | Manufactured an Enhanced Grunt 17461 | -4/Cetus | Spotted Cetus Guard 17461 | -4/Cetus | Spotted Cetus Guard 17463 | -4/Cetus | Spotted Cetus Guard 17463 | -4/Cetus | Spotted Cetus Guard 17470 | -4/Cetus | Destroyed Cetus Guard 17472 | -4/Cetus | Allies destroyed Cetus Guard 17473 | -4/Cetus | Manufactured an Enhanced Grunt 17476 | -4/Cetus | Destroyed Cetus Guard 17487 | -4/Cetus | Destroyed Cetus Guard 17493 | -4/Cetus | Discovered new exit (range 16) 17498 | -4/Cetus | Manufactured an Enhanced Grunt 17503 | -4/Cetus | Met Revision 17 17523 | -4/Cetus | Manufactured an Enhanced Grunt 17531 | -4/Cetus | System corruption reached 30% 17548 | -4/Cetus | Manufactured an Enhanced Grunt 17636 | -4/Cetus | Entered Archives 17636 | -4/Archives | Accompanied by 11 allies (A7) 17641 | -4/Archives | Received a hacking code to weaken MAIN.C 17650 | -4/Archives | Met Zhirov 17656 | -4/Archives | Reinforcements dispatched to Archives 17693 | -4/Archives | Destroyed 7 combat bots 17701 | -4/Archives | Reinforcements dispatched to Archives 17703 | -4/Archives | Zhirov warped through subspace 17717 | -4/Archives | Discovered new exit (range 4) 17721 | -4/Archives | Zhirov detonated Archives 17722 | -4/Archives | Entered Hub_04(d) 17752 | -4/Hub_04(d) | Lost 10 allies 17786 | -4/Hub_04(d) | Discovered new exit (range 15) 17924 | -4/Hub_04(d) | Network Hub disabled 18115 | -4/Hub_04(d) | Entered Research 18115 | -3/Research | Evolved 2 slots: Utility x1, Weapon x1 18116 | -3/Research | Identified exit to Research 18118 | -3/Research | Loaded intel: 44 interactive machine locations 18242 | -3/Research | Found Prototype Launcher 18242 | -3/Research | Identified Com. Tesla Bomb Launcher 18246 | -3/Research | Found Com. Tesla Bomb Launcher 18315 | -3/Research | Revision forces began assault on 0b10 18363 | -3/Research | Met up with Revision 17++ 18411 | -3/Research | Found Com. Tesla Bomb Launcher 18553 | -3/Research | Loaded intel: 5 recycling unit locations 18660 | -3/Research | Discovered new exit (range 7) 18711 | -3/Research | Discovered new exit (range 7) 18815 | -3/Research | Research terminal network offline 18882 | -3/Research | Entered Testing 19124 | -3/Testing | Found Prototype Hackware 19124 | -3/Testing | Identified Exp. System Shield 19198 | -3/Testing | Garrison activated, responded to threat 19259 | -3/Testing | System corruption reached 10% 19338 | -3/Testing | Discovered exit to Research (range 17) 19355 | -3/Testing | Spotted PG-IK7NODVFVY 19391 | -3/Testing | Destroyed PG-IK7NODVFVY 19446 | -3/Testing | Found Prototype Hackware 19446 | -3/Testing | Identified System Mapper 19569 | -3/Testing | Lost 4 parts (2u2w) 19809 | -3/Testing | Build established: Scavenger-Tank 19921 | -3/Testing | System corruption reached 30% 19967 | -3/Testing | Entered Research 19967 | -2/Research | Evolved 2 slots: Power x1, Weapon x1 20288 | -2/Research | Spotted B-90 Cyclops 20470 | -2/Research | Found Prototype Launcher 20470 | -2/Research | Identified Tactical Quantum Warhead 20509 | -2/Research | Identified exit to Quarantine 20787 | -2/Research | Loaded intel: 5 recycling unit locations 20900 | -2/Research | Entered Quarantine 20927 | -2/Quarantine | Found Alien Artifact 20928 | -2/Quarantine | Identified Phase Redirector 20991 | -2/Quarantine | Found Alien Artifact 21129 | -2/Quarantine | Lost 7 parts (2p4u1w) 21141 | -2/Quarantine | Spotted Alpha 7 21185 | -2/Quarantine | Destroyed Alpha 7 21190 | -2/Quarantine | Found Prototype Processor 21213 | -2/Quarantine | Lost 3 parts (1u2w) 21264 | -2/Quarantine | Core integrity fell below 50% 21464 | -2/Quarantine | Found Alien Artifact 21464 | -2/Quarantine | Identified Phase Armor 21493 | -2/Quarantine | Build established: Scavenger-Gunner 22256 | -2/Quarantine | Cryocooling Duct disabled 22256 | -2/Quarantine | Cryocooling Duct disabled 22271 | -2/Quarantine | Ambient heat levels rising (+40) 22271 | -2/Quarantine | Non-combat units ordered to evacuate 22271 | -2/Quarantine | Combat units ordered to evacuate 22371 | -2/Quarantine | Quarantine Guard activated 22472 | -2/Quarantine | Spotted Quarantine Guard 22482 | -2/Quarantine | Destroyed Quarantine Guard 22509 | -2/Quarantine | Spotted Quarantine Guard 22511 | -2/Quarantine | Spotted Quarantine Guard 22599 | -2/Quarantine | Destroyed Quarantine Guard 22609 | -2/Quarantine | Destroyed Quarantine Guard 22741 | -2/Quarantine | Spotted Quarantine Guard 22744 | -2/Quarantine | Destroyed Quarantine Guard 22786 | -2/Quarantine | System corruption reached 10% 22806 | -2/Quarantine | Build established: Scavenger-Tank 22820 | -2/Quarantine | Spotted Quarantine Guard 22825 | -2/Quarantine | Destroyed Quarantine Guard 22897 | -2/Quarantine | Spotted Quarantine Guard 22905 | -2/Quarantine | Destroyed Quarantine Guard 22905 | -2/Quarantine | Spotted Quarantine Guard 22913 | -2/Quarantine | Destroyed Quarantine Guard 23517 | -2/Quarantine | Spotted Quarantine Guard 23520 | -2/Quarantine | Destroyed Quarantine Guard 23885 | -2/Quarantine | Found Alien Artifact 23885 | -2/Quarantine | Identified Core Reset Matrix 23885 | -2/Quarantine | Identified Subatomic Replicator 23885 | -2/Quarantine | Used Core Reset Matrix 23889 | -2/Quarantine | Detected hypermatrix surge 23889 | -2/Quarantine | Sensed 14 artifacts in vicinity 24048 | -2/Quarantine | Met incapacitated Sigix Warrior 24048 | -2/Quarantine | Lockdown squad dispatched 24110 | -2/Quarantine | Spotted Lightning 24127 | -2/Quarantine | Spotted Lightning 24128 | -2/Quarantine | Spotted Lightning 24164 | -2/Quarantine | Destroyed Lightning 24171 | -2/Quarantine | Destroyed Lightning 24189 | -2/Quarantine | Destroyed Lightning 24674 | -2/Quarantine | Spotted Quarantine Guard 24686 | -2/Quarantine | Destroyed Quarantine Guard 24829 | -2/Quarantine | Discovered new exit (range 13) 24829 | -2/Quarantine | Spotted Quarantine Guard 24832 | -2/Quarantine | Destroyed Quarantine Guard 25064 | -2/Quarantine | Cryocooling Duct disabled 25079 | -2/Quarantine | Ambient heat levels rising (+20) 26020 | -2/Quarantine | Identified Exp. Targeting Computer 26382 | -2/Quarantine | Found Core Stripper 26665 | -2/Quarantine | Build established: Scavenger-Mutant 26983 | -2/Quarantine | Spotted Fortress 26989 | -2/Quarantine | Destroyed Fortress 27018 | -2/Quarantine | Found Vortex Chain Reactor 27286 | -2/Quarantine | Build established: Hacker-Mutant 27640 | -2/Quarantine | Found Sigix Broadsword 27810 | -2/Quarantine | Found Exp. Targeting Computer 27861 | -2/Quarantine | Build established: Scavenger-Mutant 27921 | -2/Quarantine | System corruption reached 30% 28104 | -2/Quarantine | Found Exp. Phase Shifter 28217 | -2/Quarantine | Build established: Scavenger-Tank 28441 | -2/Quarantine | Found Exp. Force Field 28447 | -2/Quarantine | Found Thermal Barrier 31035 | -2/Quarantine | Used Subatomic Replicator to create Supercharged TR 31045 | -2/Quarantine | Found Transdimensional Reconstructor 31054 | -2/Quarantine | Found Dimensional Node Initializer 31062 | -2/Quarantine | Found Dimensional Node Initializer 31377 | -2/Quarantine | Found Terrabomb 31891 | -2/Quarantine | Found Exp. EM Shield 32138 | -2/Quarantine | Discovered new exit (range 6) 32138 | -2/Quarantine | Discovered new exit (range 7) 32138 | -2/Quarantine | Spotted Quarantine Guard 32138 | -2/Quarantine | Spotted Quarantine Guard 32149 | -2/Quarantine | Destroyed Quarantine Guard 32158 | -2/Quarantine | Destroyed Quarantine Guard 32168 | -2/Quarantine | Identified exit to Protoforge 33850 | -2/Quarantine | Entered Protoforge 33851 | -2/Protoforge | Sensed 2 artifacts in vicinity 33897 | -2/Protoforge | Superfortress began startup sequence 34136 | -2/Protoforge | Spotted Hotshot 34149 | -2/Protoforge | Spotted Hotshot 34157 | -2/Protoforge | Destroyed Hotshot 34195 | -2/Protoforge | Destroyed Hotshot 34302 | -2/Protoforge | Spotted B-90 Cyclops 34323 | -2/Protoforge | Destroyed B-90 Cyclops 34350 | -2/Protoforge | First assault squad dispatched 34428 | -2/Protoforge | Destroyed 9 combat bots 34498 | -2/Protoforge | Initialized slip node 34509 | -2/Protoforge | Used Terrabomb 34509 | -2/Protoforge | Additional patrols dispatched to research labs 34546 | -2/Protoforge | Found Cep. Network Penetrator 34556 | -2/Protoforge | Spotted Immortal 34556 | -2/Protoforge | Spotted Immortal 34625 | -2/Protoforge | Destroyed Immortal 34637 | -2/Protoforge | Destroyed Immortal 34699 | -2/Protoforge | Spotted Decapitator 34699 | -2/Protoforge | Spotted Decapitator 34699 | -2/Protoforge | Spotted Decapitator 34699 | -2/Protoforge | Spotted Decapitator 34717 | -2/Protoforge | Destroyed Decapitator 34719 | -2/Protoforge | Destroyed Decapitator 34720 | -2/Protoforge | Destroyed Decapitator 34724 | -2/Protoforge | Destroyed Decapitator 34752 | -2/Protoforge | Lost 3 parts (3u) 34793 | -2/Protoforge | Found Crosscalibrator 35359 | -2/Protoforge | Destroyed 10 combat bots 35410 | -2/Protoforge | Spotted V782-p 35411 | -2/Protoforge | Spotted V391-i 35420 | -2/Protoforge | Spotted V333-u 35422 | -2/Protoforge | Spotted V113-k 35423 | -2/Protoforge | Warped through subspace to slip node 35532 | -2/Protoforge | Core integrity fell below 20% 35554 | -2/Protoforge | Spotted Decapitator 35554 | -2/Protoforge | Spotted Decapitator 35563 | -2/Protoforge | Destroyed Decapitator 35566 | -2/Protoforge | Destroyed Decapitator 35605 | -2/Protoforge | Discovered new exit (range 8) 35662 | -2/Protoforge | Spotted Hotshot 35684 | -2/Protoforge | Spotted Hotshot 35685 | -2/Protoforge | Destroyed Hotshot 35696 | -2/Protoforge | Destroyed Hotshot 35964 | -2/Protoforge | Spotted Hotshot 35964 | -2/Protoforge | Spotted Hotshot 35973 | -2/Protoforge | Destroyed Hotshot 35990 | -2/Protoforge | Destroyed Hotshot 36107 | -2/Protoforge | Lost 3 parts (3u) 36115 | -2/Protoforge | Spotted Overlord 36146 | -2/Protoforge | Destroyed Overlord 36181 | -2/Protoforge | Found Exp. EM Shield 36207 | -2/Protoforge | Lost 8 parts (2p2u4w) 36219 | -2/Protoforge | Warped through subspace 36219 | -2/Protoforge | Spotted Immortal 36219 | -2/Protoforge | Spotted Immortal 36221 | -2/Protoforge | Destroyed by Immortal with Experimental Jetlance Last Messages --------------- 36201_ Switching to secondary target: X-87 Electro. 36204_ Activated siege mode. 36204_ P-80 Master resets X-87 Electro, system corruption cleaned. 36204_ Door malfunctions. 36204_ System corrupted: Prc. Phase Gun failed to cycle. 36204_ Slug penetrates X-87 Electro. 36209_ System corrupted: Prc. Phase Gun failed to cycle. 36210_ P-80 Master resets P-80 Master, system corruption cleaned. 36212_ X-87 Electro destroyed. 36212_ Switching to secondary target: P-80 Master. 36213_ System corrupted: Component data lost. 36215_ P-80 Master resets P-80 Master, system corruption cleaned. 36216_ System corrupted: Hvy. Laser failed to cycle. 36216_ Slug penetrates P-80 Master. 36216_ P-80 Master destroyed. 36216_ Switching to secondary target: P-80 Master. 36216_ K-01 Serf collects debris. 36219_ Warped through subspace. 36220_ Microcatalyzer disabled. 36220_ K-01 Serf collects debris. Map ----- +----------------------------------------------------+ | ???????????# ########## # # | | ???######### %# % # " # | | ???""" " # # """"##+# ? | | ???"R"" # #% # ????? | | ???? "" # !# !" # ???? | | ???? # %= "" # ???? | | ???"""" # =#= # #??? | | ????""" # # """ #####"""""""" ?? | | ???"""" # # """ #???####### # ?? | | ????""" # # "" #??????????## "? | | ???? # %# #?????????????"? | | ????"" + % # #??????????????? | | ????"" # # #??????????????? | | ?????" # ##########??????????????? | | ?????? # ##??????????????????????? | | ??????? # #???????????????????????? | | ???????? # ###?????????????????????? | | ##########"# T"#?????????????????????? | | # + ""#?????????????????????? | | # # ###?????????????????????? | | # # #??????#????????????????? | | # """ """ # #???? #????????????????? | | # """ """ # #??? #????????????????? | | # """ """ # ### < ###+##???????????? | | # # p|p ^ ????????? | | # """ """ + @ g ????????? | | # """ """ # llk " " " " ????????????? | | # """ """ # " " " " " ??????????????? | | # # " " " " " " ??????????????? | | # """ """ # ??????????????? | | # """ """ # " " " " " " ??????????????? | | # """ """ # "T" " " " ??????????????? | | # # """ " " " ? ??????????????? | | ######+##### ????????????????? | | # + ?????????????????? | | #"" # ######+##?## ?????????????????? | | #"" # #??????????? ?????????????????? | | #"" # #??????????? ??"??? ???????????# | | #T # #???????????????? ?????????? | | #"" # #???????????????? ????????? | | #"" # #???????????????? ? ???????? | | #"" # #???????????????? ?? ??????? | | # # #????????????????# ####/####### | | ###### #????????????????# # # | | ?????# #????????????????# # # | | ???###+################?# # # | | ???# #?#% # # | | ???# ### %%%# # | | ???# ###= # " | | ???# "" """ ###= %!# # | +----------------------------------------------------+ Best States ------------- Heat Dissipation 173 Energy Generation 75 Energy Capacity 2925 Matter Stores 300 Matter Capacity 300 Sight Range 24 Terrain Scan Density 10 Jamming Range 16 Base Temperature (-) 200 EM Shielding 4 Armor Coverage 900 Resistance: EM 75 Point Defense Rating 240 Evasion (%) 40 Targeting Accuracy 16 Target Analysis 8 Core Analysis 6 Recoil Reduction 4 Matter Filtering 50 Kinecelleration 40 Offensive Hacking 50 Defensive Hacking 16 Item Schematics ----------------- Exp. Optical Array | -2/Quarantine | Archive Com. Particle Reactor | -2/Quarantine | Archive Nanosword | -2/Quarantine | Archive Enh. Force Rifle | -2/Quarantine | Archive Singularity Reactor | -2/Quarantine | Archive Robot Schematics ------------------ Y-72 Warden | -2/Quarantine | Archive A-02 Transporter | -2/Quarantine | Archive B-74 Champion | -2/Quarantine | Archive Fabricated ------------ Nothing Repaired ---------- Nothing Alien Tech Used ----------------- Integrated Dissipator Transdimensional Reconstructor Phase Redirector Phase Armor Core Reset Matrix Core Stripper Sigix Broadsword Subatomic Replicator Dimensional Node Initializer Terrabomb Supercharged TR Achievements -------------- None Challenges ------------ None Game ------ Seed MomentumJunkSword Manual? 0 Play Time 04:39:26 Cumulative 307.0 hours Start 2025.05.09 @ 17:22:17 End 2025.05.10 @ 11:02:56 Sessions 11 Manual Loads 0 Difficulty Rogue Special Mode None Game No. 299 Rogue 263 Adventurer 36 Explorer 0 Win Type - Total 10 Types 3/0/7/0/0/0/0/0/0/0 Lore% 68 Gallery% 80 Achievement% 73 Wizard Run 0 Options --------- Layout 0 ASCII 0 Keyboard 0 Movement Mouse Keybinds 0 Fullscreen 1 Font 18/SmallcapsGlow Map View 76x50 Zoom Use 0% Tactical HUD 1 Map Filters NONE Filters NONE Steam 1 RUN: a2340669-5628-4918-8334-5f6c4ba1a3a1